bitfinex-derivatives/quotes_ETHF0:USTF0_20251119
["timestamp","ask_amount","ask_price","bid_price","bid_amount"]
[1763525506513,3.73586,3070.1,3070.0,3.55283624]
[1763525507313,3.73586,3070.1,3070.0,10.65743624]
[1763525507314,5.19596,3070.1,3070.0,10.65743624]
[1763525508914,3.73586,3070.1,3070.0,3.55283624]
[1763525509112,0.52808,3070.0,3069.9,9.20073624]
[1763525509309,1.98818,3070.0,3069.9,10.65643624]
[1763525509701,1.98818,3070.0,3069.9,2.62743624]
[1763525510214,2.89078,3070.0,3069.9,1.17173624]
[1763525510415,1.98818,3070.0,3069.9,2.62743624]
[1763525513814,1.98819,3069.9,3069.8,1.1429414]
[1763525514215,1.98819,3069.9,3069.8,2.5986414]
[1763525514418,1.98821,3069.8,3069.7,2.62743624]
[1763525517013,0.52811,3069.8,3069.7,2.62743624]
[1763525517414,0.52811,3069.8,3069.7,1.4557]
[1763525519910,4.5409,3070.5,3070.4,1.4314]
[1763525520110,5.06889,3070.5,3070.4,1.4314]
[1763525520324,5.85879,3070.5,3070.4,1.4314]
[1763525520717,0.52802,3070.3,3070.2,1.1429414]
[1763525521019,0.52802,3070.3,3070.2,2.5743414]
[1763525521020,1.86112,3070.3,3070.2,2.5743414]
[1763525521220,1.86114,3070.2,3070.1,1.17080609]
[1763525521419,1.86114,3070.2,3070.1,8.027]
[1763525522121,2.65107,3070.0,3069.9,1.17080609]
[1763525522317,2.123,3069.5,3069.0,5.27614143]
[1763525522932,2.123,3069.5,3069.0,4.13320003]
[1763525523527,0.52823,3069.1,3069.0,5.56460003]
[1763525524316,0.52823,3069.1,3069.0,2.35680003]
[1763525525231,3.73594,3069.6,3069.5,2.2976]
[1763525528224,5.06904,3069.6,3069.5,1.4314]
[1763525528825,1.86124,3069.6,3069.5,1.4314]
[1763525530532,0.52823,3069.1,3069.0,3e-08]
[1763525530830,3.73603,3069.1,3069.0,3e-08]
[1763525531034,1.86133,3069.1,3069.0,1.43140003]
[1763525531423,0.52823,3069.1,3069.0,1.85930003]
[1763525532229,0.52823,3069.1,3069.0,2.38755003]
[1763525532437,0.52823,3069.1,3069.0,1.85930003]
[1763525536839,1.86133,3069.1,3069.0,1.43140003]
[1763525537735,0.52823,3069.1,3069.0,3e-08]
[1763525538237,3.73603,3069.1,3069.0,3e-08]
[1763525539943,3.73603,3069.1,3069.0,1.43140003]
[1763525540133,5.06913,3069.1,3069.0,1.43140003]
[1763525540331,5.06913,3069.1,3069.0,3e-08]
[1763525540637,3.73603,3069.1,3069.0,3e-08]
[1763525540837,4.90501296,3069.1,3069.0,3e-08]
[1763525541039,3.73603,3069.1,3069.0,3e-08]
[1763525541241,0.52837,3068.3,3068.2,9.4564]
[1763525541442,1.86147,3068.3,3068.2,1.4314]
[1763525541637,3.9977,3068.5,3067.9,1.4314]
[1763525541638,1.86152,3068.0,3067.9,1.4314]
[1763525541844,0.52842,3068.0,3067.9,3.12882296]
[1763525542043,0.52842,3068.0,3067.9,2.60038296]
[1763525542244,0.5324779,3068.0,3067.9,4.35909531]
[1763525542851,0.5324779,3068.0,3067.9,2.60387366]
[1763525543557,1.8655779,3068.0,3067.9,1.4348907]
[1763525544350,0.5324779,3068.0,3067.9,1.4348907]
[1763525544550,0.0040579,3068.0,3067.9,3.13231366]
[1763525544955,0.5284,3068.2,3068.1,0.52839]
[1763525545159,0.00488838,3068.3,3068.2,1.84558]
[1763525545452,0.53325838,3068.3,3068.2,1.84558]
[1763525545642,0.00488838,3068.3,3068.2,1.84558]
[1763525545845,0.00886768,3068.3,3068.2,1.84558]
[1763525546045,0.53723768,3068.3,3068.2,1.3172]
[1763525546246,0.53723768,3068.3,3068.2,1.84558]
[1763525547156,0.53723768,3068.3,3068.2,1.3172]
[1763525548058,0.00886768,3068.3,3068.2,1.84558]
[1763525548357,0.53723768,3068.3,3068.2,1.84558]
[1763525548557,0.53723768,3068.3,3068.2,1.3172]
[1763525548852,0.00886768,3068.3,3068.2,1.84558]
[1763525549059,3.2078,3069.1,3068.1,6.13200461]
[1763525549060,0.5283,3068.7,3068.6,1.76111]
[1763525549257,0.5283,3068.7,3068.6,6.13789296]
[1763525550054,0.53098016,3068.7,3068.6,6.13789296]
[1763525550654,0.53098016,3068.7,3068.6,5.60958296]
[1763525550852,0.53098016,3068.7,3068.6,4.4406]
[1763525551859,0.53098016,3068.7,3068.6,4.96892]
[1763525552159,0.53098016,3068.7,3068.6,4.4406]
[1763525553160,1.79855,3068.4,3068.3,1.16991237]
[1763525553458,1.79857,3068.3,3068.2,1.2328]
[1763525554253,1.79857,3068.3,3068.2,2.40264671]
[1763525557161,1.79857,3068.3,3068.2,1.2328]
[1763525557962,1.79857,3068.3,3068.2,2.40264671]
[1763525558164,1.79857,3068.3,3068.2,1.2328]
[1763525561766,0.52837,3068.3,3068.2,1.2328]
[1763525562263,0.52837,3068.3,3068.2,2.40264671]
[1763525562462,0.52837,3068.3,3068.2,4.4406]
[1763525563470,0.52837,3068.3,3068.2,1.2328]
[1763525565869,0.00268016,3068.7,3068.6,1.2328]
[1763525566063,0.53098016,3068.7,3068.6,1.2328]
[1763525566470,1.80118016,3068.7,3068.6,1.2328]
[1763525567770,0.53098016,3068.7,3068.6,1.76112]
[1763525568069,0.53098016,3068.7,3068.6,2.93168852]
[1763525568275,0.53098016,3068.7,3068.6,2.40418674]
[1763525568775,0.53098016,3068.7,3068.6,1.2328]
[1763525569771,2.58613,3068.5,3068.4,2.98587091]
[1763525569974,2.58613,3068.5,3068.4,1.75307091]
[1763525570167,2.58613,3068.5,3068.1,3.2078]
[1763525570168,1.79855,3068.4,3068.3,1.2328]
[1763525571074,1.79857,3068.3,3068.2,1.75307091]
[1763525571268,1.79858,3068.2,3068.1,1.17188394]
[1763525571572,1.2702,3067.8,3067.7,3.2078]
[1763525571768,1.2702,3067.8,3067.6,0.00488838]
[1763525571769,1.2702,3066.9,3066.8,1.25708372]
[1763525571966,1.2702,3066.1,3066.0,5.236]
[1763525572169,1.79895,3066.1,3066.0,5.236]
[1763525572373,0.52875,3066.1,3066.0,5.236]
[1763525572567,0.52869,3066.5,3066.4,1.2328]
[1763525572770,0.53224237,3066.5,3066.4,1.2328]
[1763525573671,0.00355237,3066.5,3066.4,4.4406]
[1763525578980,3.2078,3067.3,3067.0,0.775]
[1763525579279,3.73634,3067.3,3067.2,1.2908]
[1763525579577,3.2078,3067.3,3067.2,1.2908]
[1763525579974,3.21042777,3067.3,3067.2,1.2908]
[1763525580179,0.52856,3067.2,3067.1,1.2908]
[1763525580880,0.52863,3066.8,3066.7,1.81944]
[1763525581580,0.5286,3067.0,3066.9,1.2908]
[1763525581769,1.74056,3066.6,3066.5,3.2078]
[1763525581968,0.7349,3067.0,3066.0,3.21171255]
[1763525581969,1.74063,3066.2,3066.0,3.21171255]
[1763525582379,1.74063,3066.2,3066.0,0.00391255]
[1763525586277,1.74063,3066.2,3066.1,1.29568838]
[1763525587583,1.74056,3066.6,3066.5,1.2908]
[1763525587891,0.52866,3066.6,3066.5,2.0658]
[1763525588188,1.74056,3066.6,3066.5,2.0658]
[1763525591986,0.52873,3066.2,3066.1,3.21268838]
[1763525592182,1.74063,3066.2,3066.1,0.00488838]
[1763525593183,1.74063,3066.2,3066.1,8.38e-06]
[1763525593387,1.74077,3065.4,3065.3,3.2078]
[1763525594391,1.74077,3065.4,3065.3,3.21012132]
[1763525595691,4.94857,3065.4,3065.3,0.00232132]
[1763525595886,4.94857,3065.4,3065.3,1.29312132]
[1763525596284,4.94857,3065.4,3065.3,0.00232132]
[1763525598889,1.2119,3064.5,3064.4,3.2078]
[1763525599088,1.9468,3064.5,3064.4,3.2078]
[1763525599382,1.74101,3064.0,3063.9,3.2078]
[1763525599586,1.74101,3064.0,3063.9,4.4986]
[1763525599993,1.7439413,3064.0,3063.9,3.21100229]
[1763525600295,5.6866413,3064.0,3063.9,0.00320229]
[1763525600891,4.9517413,3064.0,3063.9,0.00320229]
[1763525601089,4.9517413,3064.0,3063.9,1.29400229]
[1763525601090,0.0029313,3064.0,3063.9,1.29400229]
[1763525601492,1.9497313,3064.0,3063.9,0.00320229]
[1763525602290,1.2148313,3064.0,3063.9,2.29e-06]
[1763525603187,0.0029313,3064.0,3063.9,1.20490229]
[1763525603797,3.73683,3064.5,3064.4,1.2049]
[1763525603994,0.52903,3064.5,3064.4,1.2049]
[1763525604195,0.52909,3064.1,3064.0,1.9092]
[1763525604396,0.52907,3064.3,3064.2,1.2049]
[1763525604893,0.53227517,3064.3,3064.2,1.2049]
[1763525605697,0.00320517,3064.3,3064.2,1.2049]
[1763525607694,5.17e-06,3064.3,3064.2,1.2049]
[1763525612296,0.52906517,3064.3,3064.2,1.73397]
[1763525612496,1.65516517,3064.3,3064.2,1.2049]
[1763525612691,1.65519,3064.1,3064.0,1.8642]
[1763525613396,0.52907517,3064.3,3064.2,1.1599]
[1763525614199,5.17e-06,3064.3,3064.2,0.52907]
[1763525614393,5.17e-06,3064.3,3064.2,1.68897]
[1763525614699,3.2078,3065.3,3064.2,6.0]
[1763525614903,3.2078,3065.3,3065.2,1.1599]
[1763525614904,0.52888,3065.3,3065.2,1.1599]
[1763525615095,1.65498,3065.3,3065.2,1.1599]
[1763525615297,0.52888,3065.3,3065.2,1.1599]
[1763525615493,0.52888,3065.3,3065.2,4.3677]
[1763525615990,1.65891937,3065.3,3065.2,1.1599]
[1763525616410,0.53281937,3065.3,3065.2,1.1599]
[1763525617403,0.658,3066.5,3065.9,1.26058]
[1763525617599,1.1261,3066.4,3066.3,3.2078]
[1763525617905,1.6548,3066.4,3066.3,3.2078]
[1763525618294,1.65857865,3066.4,3066.3,3.21196048]
[1763525618604,0.53247865,3066.4,3066.3,3.94376048]
[1763525619302,0.00377865,3066.4,3066.3,3.94376048]
[1763525619903,0.00488838,3066.7,3066.6,1.26046]
[1763525620710,0.52856,3067.2,3067.1,0.7318]
[1763525621006,0.53255501,3067.2,3067.1,3.9396]
[1763525621203,1.65865501,3067.2,3067.1,3.2078]
[1763525621408,1.68717175,3068.4,3067.1,3.2078]
[1763525621409,3.2078,3068.3,3067.4,0.7318]
[1763525621707,0.52847,3067.8,3067.7,0.7318]
[1763525622410,1.24363,3068.0,3067.9,0.7318]
[1763525622609,0.71927318,3068.0,3067.9,0.7318]
[1763525622809,0.00407318,3068.0,3067.9,0.7318]
[1763525623709,0.71927318,3068.0,3067.6,3.2078]
[1763525623910,0.52847,3067.8,3067.7,0.7318]
[1763525624104,1.65457,3067.8,3067.6,3.2078]
[1763525624310,1.1261,3067.7,3067.6,3.2078]
[1763525624514,1.8413,3067.5,3067.4,0.00488838]
[1763525625509,1.65473,3066.8,3066.7,3.2078]
[1763525627008,0.52863,3066.8,3066.7,4.3677]
[1763525627214,3.21268838,3067.1,3067.0,1.1599]
[1763525627412,3.21268838,3067.1,3066.7,3.2078]
[1763525627413,1.65473,3066.8,3066.7,3.2078]
[1763525627606,0.53347838,3067.1,3067.0,1.1599]
[1763525627813,0.53347838,3067.1,3067.0,1.6819]
[1763525628014,0.52863,3066.8,3066.7,4.3677]
[1763525628412,0.52861,3066.9,3066.8,1.1599]
[1763525629912,0.00488838,3067.1,3066.8,1.1599]
[1763525630819,0.00488838,3067.1,3066.9,1.1599]
[1763525631016,0.00488838,3067.1,3067.0,1.1599]
[1763525631214,3.21268838,3067.1,3066.7,4.3677]
[1763525631416,0.53345838,3067.1,3067.0,1.1599]
[1763525632014,0.53345838,3067.1,3067.0,1.6819]
[1763525632608,3.2078,3067.9,3067.0,1.6819]
[1763525632813,3.73624,3067.9,3067.8,1.1599]
[1763525633613,0.52849,3067.6,3067.5,1.8425]
[1763525634023,0.52849,3067.6,3067.5,1.1599]
[1763525634719,0.52849,3067.6,3067.5,1.8425]
[1763525634916,0.52849,3067.6,3067.5,2.37101]
[1763525635518,0.52846,3067.8,3067.5,2.37101]
[1763525635718,3.2078,3067.9,3067.5,2.37101]
[1763525636024,0.52849,3067.6,3067.5,1.8425]
[1763525637017,0.52849,3067.6,3067.5,1.1599]
[1763525637332,1.65469,3067.0,3066.9,3.2078]
[1763525637623,0.52859,3067.0,3066.9,4.3677]
[1763525637823,0.52866,3066.6,3066.5,1.8349]
[1763525638015,0.52866,3066.6,3066.5,1.1523]
[1763525638221,0.52866,3066.6,3066.5,1.68098]
[1763525638418,0.52866,3066.6,3066.5,2.18198]
[1763525640325,1.71578,3066.5,3066.4,3.21268838]
[1763525641126,5.56888,3066.5,3066.4,0.00488838]
[1763525642235,0.52868,3066.5,3066.4,1.15718838]
[1763525642626,0.52866,3066.7,3066.6,1.1523]
[1763525642830,0.52859,3067.0,3066.9,1.1523]
[1763525643832,0.52866,3066.6,3066.5,1.8422]
[1763525644129,3.2078,3067.4,3066.5,2.37088]
[1763525644335,3.2078,3067.4,3066.5,0.6899]
[1763525644526,0.52863,3066.8,3066.7,1.1523]
[1763525645427,0.52863,3066.8,3066.7,1.68094]
[1763525645632,0.5286,3067.0,3066.9,1.1523]
[1763525647633,0.5286,3067.0,3066.9,1.68091]
[1763525647936,0.52852,3067.4,3067.3,1.1523]
[1763525648136,0.52852,3067.4,3067.3,4.3601]
[1763525648536,0.52852,3067.4,3067.3,4.88864]
[1763525648736,0.71927318,3068.0,3067.5,1.8349]
[1763525649836,0.71927318,3068.0,3067.4,0.52851]
[1763525650141,0.53249318,3068.0,3067.9,1.1523]
[1763525650438,0.52849,3067.6,3067.5,1.8277]
[1763525650840,0.52849,3067.6,3067.5,2.35621]
[1763525651137,0.52846,3067.8,3067.7,1.68077]
[1763525651544,0.52846,3067.8,3067.7,4.3601]
[1763525652536,0.00407318,3068.0,3067.9,1.1523]
[1763525652738,0.53249318,3068.0,3067.9,1.1523]
[1763525653740,3.2078,3069.1,3068.5,1.1523]
[1763525654043,0.5283,3068.7,3068.5,0.4938]
[1763525654244,0.52833,3068.5,3068.4,1.15718838]
[1763525654451,0.6453,3069.0,3068.4,1.15718838]
[1763525654641,0.52832,3068.6,3068.5,1.1523]
[1763525654847,0.53171097,3068.6,3068.5,1.15546819]
[1763525655145,0.53171097,3068.6,3068.5,1.64926819]
[1763525655738,3.8531,3069.5,3069.0,1.1523]
[1763525655941,3.8531,3069.5,3069.0,1.8422]
[1763525656535,0.52821,3069.2,3069.1,1.1523]
[1763525656742,0.53113047,3069.2,3069.1,1.1523]
[1763525657045,0.00292047,3069.2,3069.1,1.1523]
[1763525657944,1.8324,3069.0,3068.9,3.2078]
[1763525658144,1.1871,3068.5,3068.4,0.00488838]
[1763525658340,3.2078,3068.8,3068.5,1.1523]
[1763525658543,3.73608,3068.8,3068.7,1.1523]
[1763525659142,0.52833,3068.5,3068.4,1.15718838]
[1763525659341,3.2078,3068.8,3068.7,1.1523]
[1763525660647,2.36073,3068.5,3068.4,0.00755311]
[1763525661148,0.52847,3067.7,3067.6,3.2078]
[1763525661546,3.2078,3068.2,3067.8,1.1523]
[1763525661749,0.52844,3067.9,3067.8,1.1523]
[1763525662250,0.52847,3067.7,3067.6,4.3601]
[1763525662851,0.52847,3067.7,3067.6,4.36392118]
[1763525663953,0.52845,3067.9,3067.8,1.1523]
[1763525665046,0.00488838,3068.0,3067.9,1.0062]
[1763525670754,3.73612,3068.6,3068.2,1.53457]
[1763525671054,3.2078,3068.6,3068.2,1.53457]
[1763525671254,3.73612,3068.6,3068.5,0.9886]
[1763525671845,1.0688,3068.2,3067.6,0.00382118]
[1763525672042,0.52845,3067.8,3067.7,4.1964]
[1763525672655,3.2078,3068.4,3067.7,4.1964]
[1763525672953,0.6188,3068.5,3068.1,3.2078]
[1763525673154,0.52838,3068.3,3068.2,0.9886]
[1763525673651,1.59718,3068.3,3068.2,0.9886]
[1763525673852,0.52838,3068.3,3068.2,0.9886]
[1763525674750,1.0688,3068.2,3068.1,3.2078]
[1763525674945,0.52838,3068.3,3068.1,4.1964]
[1763525675152,0.52838,3068.3,3068.2,0.9886]
[1763525676358,3.2078,3068.8,3068.1,3.2078]
[1763525676559,0.52834,3068.5,3068.4,0.9886]
[1763525677153,0.52835,3068.4,3068.3,0.9886]
[1763525677357,3.73608,3068.8,3068.7,0.9886]
[1763525679956,0.6453,3069.5,3069.1,0.9886]
[1763525679957,0.53113047,3069.2,3069.1,0.9886]
[1763525681052,3.2078,3069.3,3069.2,0.9886]
[1763525681255,3.736,3069.3,3069.2,0.9886]
[1763525681455,3.2078,3069.3,3069.2,1.51681]
[1763525681856,3.73593,3069.7,3069.6,0.9886]
[1763525682063,3.21072222,3069.7,3069.6,0.9886]
[1763525683061,0.00292222,3069.7,3069.6,0.9886]
[1763525683261,0.52807,3070.1,3070.0,0.9886]
[1763525683462,0.52804,3070.3,3070.2,0.9886]
[1763525683761,3.2078,3070.6,3070.5,0.9886]
[1763525684064,3.73577,3070.6,3070.5,0.9886]
[1763525684368,3.73837139,3070.6,3070.5,0.99172103]
[1763525684962,0.53057139,3070.6,3070.5,0.99172103]
[1763525685464,1.59937139,3070.6,3070.5,0.00312103]
[1763525687066,1.59937139,3070.6,3070.5,0.99172103]
[1763525689365,4.80717139,3070.6,3070.5,0.00312103]
[1763525696873,4.80717139,3070.6,3070.5,2.103e-05]
[1763525699692,4.80717139,3070.6,3070.5,0.98572103]
[1763525699985,4.80717139,3070.6,3070.5,2.103e-05]
[1763525700583,4.80717139,3070.6,3070.5,0.98572103]
[1763525700978,4.80717139,3070.6,3070.5,2.103e-05]
[1763525701187,3.73837139,3070.6,3070.5,2.103e-05]
[1763525702084,0.52792,3070.9,3070.5,0.55672103]
[1763525702388,0.52787,3071.2,3071.1,0.9857]
[1763525702582,3.2078,3071.9,3071.3,0.9857]
[1763525702782,0.52778,3071.7,3071.6,0.9857]
[1763525702988,0.52777,3071.8,3071.7,0.9857]
[1763525703179,3.2078,3071.9,3071.8,0.9857]
[1763525703387,3.21105355,3071.9,3071.8,0.9857]
[1763525703587,1.45751,3071.6,3071.2,3.73566]
[1763525703890,0.9297,3071.3,3071.2,3.2078]
[1763525704690,3.2078,3071.3,3070.5,0.55672103]
[1763525704893,0.1223,3070.6,3070.5,0.55672103]
[1763525705093,0.52795,3070.7,3070.5,0.55672103]
[1763525705294,3.73565,3071.3,3071.2,0.9857]
[1763525705489,0.52789,3071.1,3071.0,0.5567]
[1763525705691,0.52789,3071.1,3071.0,1.5424]
[1763525705894,0.52797,3070.6,3070.5,1.54242103]
[1763525706396,0.65027,3070.6,3070.5,0.55672103]
[1763525707093,0.52797,3070.6,3070.5,0.55672103]
[1763525707292,3.2078,3071.0,3070.9,0.9857]
[1763525707495,0.52789,3071.1,3071.0,1.5424]
[1763525710296,0.52789,3071.1,3071.0,0.5567]
[1763525710791,0.52795,3070.7,3070.6,3.2078]
[1763525711000,3.2078,3071.0,3070.5,0.55672103]
[1763525711191,0.1223,3070.6,3070.5,0.55672103]
[1763525711594,0.52795,3070.7,3070.5,0.55672103]
[1763525713095,0.52787,3071.2,3071.0,0.5567]
[1763525713699,0.52789,3071.1,3071.0,1.5424]
[1763525714403,3.73563,3071.4,3071.3,0.9857]
[1763525714605,0.52782,3071.5,3071.4,1.51353]
[1763525714899,0.5278,3071.6,3071.5,1.5424]
[1763525715306,3.2078,3071.8,3071.7,1.51348]
[1763525715803,3.2078,3071.8,3071.7,0.9857]
[1763525716699,0.52778,3071.7,3071.5,0.5567]
[1763525718404,0.52778,3071.7,3071.6,0.9857]
[1763525719093,3.2078,3071.8,3071.7,0.9857]
[1763525719292,3.73557,3071.8,3071.7,0.9857]
[1763525719495,0.5278,3071.6,3071.5,1.5424]
[1763525719698,3.73557,3071.8,3071.7,1.51348]
[1763525720707,3.73557,3071.8,3071.7,0.9857]
[1763525721006,0.5278,3071.6,3071.5,0.5567]
[1763525722305,0.6501,3071.6,3071.5,0.5567]
[1763525723901,0.61427,3071.2,3071.1,3.2078]
[1763525724613,0.0864,3071.1,3070.5,3.76452103]
[1763525724904,3.2078,3071.7,3071.2,0.9803]
[1763525725102,0.6142,3071.6,3071.5,0.5443]
[1763525725303,0.52789,3071.1,3071.0,4.7324]
[1763525725501,0.61429,3071.1,3071.0,0.5443]
[1763525726105,0.52789,3071.1,3071.0,1.5246]
[1763525726817,0.52797,3070.6,3070.5,1.53702103]
[1763525727005,3.2078,3071.3,3070.5,1.53702103]
[1763525727204,0.52789,3071.1,3071.0,1.5246]
[1763525731206,0.56329,3071.1,3071.0,1.5246]
[1763525731512,0.56329,3071.1,3071.0,0.5443]
[1763525732011,0.56337,3070.6,3070.5,0.55672103]
[1763525732511,0.52797,3070.6,3070.5,1.50082103]
[1763525735104,3.2078,3070.8,3070.7,0.9441]
[1763525735300,3.73575,3070.8,3070.7,0.9441]
[1763525736706,3.77115,3070.8,3070.7,0.9441]
[1763525736908,3.37994802,3070.8,3070.7,0.9441]
[1763525737217,3.34454802,3070.8,3070.7,0.9441]
[1763525737711,3.2078,3071.3,3071.1,0.9441]
[1763525738012,3.2078,3071.3,3071.0,0.55]
[1763525738013,3.73565,3071.3,3071.2,0.9441]
[1763525738222,0.52789,3071.1,3071.0,1.4941]
[1763525738617,3.73567,3071.3,3071.2,0.9441]
[1763525740413,3.77107,3071.3,3071.2,0.9441]
[1763525741621,0.56327,3071.3,3071.2,0.9441]
[1763525742521,0.52787,3071.3,3071.2,0.9441]
[1763525743314,0.52787,3071.3,3071.2,1.47197]
[1763525743714,3.2078,3071.4,3071.3,1.47195]
[1763525743915,3.73563,3071.4,3071.3,1.47195]
[1763525744417,3.2078,3071.4,3071.3,3.21748586]
[1763525744618,3.21105355,3071.9,3071.8,0.9441]
[1763525744926,3.73880355,3071.9,3071.8,0.9441]
[1763525746321,1.14890505,3073.1,3073.0,1.4941]
[1763525746518,0.9023,3073.1,3073.0,1.4941]
[1763525746818,0.52745,3073.7,3073.5,0.55]
[1763525747419,0.00278115,3073.7,3073.6,0.9441]
[1763525750117,0.90508115,3073.7,3073.6,0.9441]
[1763525750314,0.52746,3073.6,3073.5,0.5529791]
[1763525750722,0.52746,3073.6,3073.5,1.4970791]
[1763525752621,0.00278115,3073.7,3073.6,0.9441]
[1763525753021,0.00278115,3073.7,3073.6,1.47156]
[1763525754618,1.42976,3073.6,3073.5,0.5529791]
[1763525754818,4.63756,3073.6,3073.5,0.0029791]
[1763525757930,4.63756,3073.6,3073.5,1.4492791]
[1763525758116,3.73526,3073.6,3073.5,1.4492791]
[1763525758520,0.9318,3073.6,3073.5,0.0029791]
[1763525758924,1.45926,3073.6,3073.5,0.0029791]
[1763525760329,4.66706,3073.6,3073.5,0.0029791]
[1763525761327,1.45938,3072.9,3072.8,3.2078]
[1763525761820,0.52754,3073.1,3073.0,0.5374]
[1763525762021,0.52754,3073.1,3073.0,1.4463]
[1763525762331,0.52754,3073.1,3073.0,1.4489954]
[1763525763332,0.52752,3073.3,3073.2,1.43643]
[1763525764029,0.52752,3073.3,3073.2,0.9089]
[1763525764534,1.45932,3073.3,3073.2,0.9089]
[1763525764720,0.52754,3073.1,3073.0,0.5400954]
[1763525765033,0.52754,3073.1,3073.0,1.4489954]
[1763525765236,1.45934,3073.1,3073.0,1.4489954]
[1763525766337,0.52754,3073.1,3073.0,1.4489954]
[1763525767023,0.52752,3073.3,3073.2,0.9089]
[1763525770040,0.52751,3073.4,3073.3,0.5275]
[1763525770240,0.52751,3073.4,3073.3,1.4364]
[1763525770447,0.52751,3073.4,3073.3,0.9089]
[1763525771346,0.9318,3073.4,3073.0,0.5400954]
[1763525771547,0.52754,3073.2,3073.1,0.9089]
[1763525771747,0.52749,3073.4,3073.3,0.9089]
[1763525772046,0.52749,3073.4,3073.3,1.43641]
[1763525772249,0.52749,3073.4,3073.3,0.9089]
[1763525772436,3.73527,3073.6,3073.3,0.52751]
[1763525772643,3.73526,3073.6,3073.5,1.97377]
[1763525772848,3.73526,3073.6,3073.5,1.4463]
[1763525773043,3.73526,3073.6,3073.1,0.053]
[1763525773044,0.52753,3073.2,3073.1,0.9619]
[1763525773443,3.2078,3073.6,3073.5,1.4463]
[1763525773648,3.73526,3073.6,3073.5,1.4463]
[1763525773846,0.00278115,3073.7,3073.6,0.9089]
[1763525774039,0.5274,3074.0,3073.9,0.9089]
[1763525774551,0.52737,3074.2,3074.1,0.9089]
[1763525775148,0.53033539,3074.2,3074.1,0.9089]
[1763525775845,1.46213539,3074.2,3074.1,0.9089]
[1763525776148,0.53033539,3074.2,3074.1,0.9089]
[1763525776447,0.9318,3074.1,3074.0,0.5374]
[1763525776849,0.53033539,3074.2,3074.0,1.4463]
[1763525777150,1.46213539,3074.2,3074.1,0.9089]
[1763525777742,0.53033539,3074.2,3074.1,0.9089]
[1763525777941,0.00296539,3074.2,3074.1,0.9089]
[1763525781752,0.00296539,3074.2,3074.1,4.1167]
[1763525782044,0.52723,3074.9,3074.8,0.9089]
[1763525782548,1.32657,3074.7,3074.6,0.8522]
[1763525783053,0.7993,3074.6,3074.5,0.00488027]
[1763525783556,4.0071,3074.6,3074.5,0.00488027]
[1763525784256,0.7993,3073.7,3073.6,3.2078]
[1763525784557,0.93593267,3073.7,3073.6,3.2078]
[1763525784853,0.52744,3073.7,3073.6,4.06]
[1763525785052,0.52743,3073.8,3073.7,0.8522]
[1763525785558,1.32673,3073.8,3073.6,3.2078]
[1763525786153,1.32673,3073.8,3073.7,0.8522]
[1763525786352,1.33152324,3074.1,3074.0,1.3712]
[1763525787250,1.33152324,3074.1,3074.0,0.519]
[1763525788053,0.53222324,3074.1,3074.0,1.3712]
[1763525788256,1.31082324,3074.1,3074.0,1.3712]
[1763525788849,0.52746,3073.6,3073.5,4.6034]
[1763525789251,0.52744,3073.7,3073.6,1.38566]
[1763525789654,0.52741,3073.9,3073.8,0.8582]
[1763525789952,0.53223324,3074.1,3074.0,1.3725]
[1763525790152,1.31083324,3074.1,3074.0,0.5143]
[1763525790454,0.52746,3073.6,3073.5,5.13087]
[1763525790855,0.52745,3073.7,3073.6,1.38565]
[1763525791044,1.31082324,3074.1,3074.0,1.3725]
[1763525791253,1.30599,3074.0,3073.9,3.2078]
[1763525791562,1.30599,3074.0,3073.9,4.066]
[1763525792560,0.52739,3074.0,3073.9,4.066]
[1763525793151,0.00485324,3074.1,3073.9,4.59341]
[1763525793346,0.00485324,3074.1,3074.0,1.89989]
[1763525793851,1.30591,3074.5,3074.4,0.8582]
[1763525794057,0.52731,3074.5,3074.4,0.8582]
[1763525794451,1.30591,3074.5,3074.4,0.8582]
[1763525795456,1.30597,3074.1,3074.0,1.3725]
[1763525795658,0.7786,3074.1,3074.0,0.5143]
[1763525795858,1.30597,3074.1,3074.0,0.5143]
[1763525796461,1.30601,3073.9,3073.8,3.2608]
[1763525796762,1.30607,3073.5,3073.4,0.00488027]
[1763525797461,4.51387,3073.5,3073.4,0.00488027]
[1763525797755,4.76147,3073.5,3073.4,0.00488027]
[1763525797949,4.51387,3073.5,3073.4,0.00488027]
[1763525798352,1.30607,3073.5,3073.4,0.86308027]
[1763525798553,1.30607,3073.5,3073.4,0.00488027]
[1763525799564,0.52747,3073.5,3073.4,0.86308027]
[1763525799757,1.30607,3073.5,3073.4,0.00488027]
[1763525799953,0.52747,3073.5,3073.4,0.86308027]
[1763525800458,1.30607,3073.5,3073.4,0.86308027]
[1763525800755,0.52747,3073.5,3073.4,0.86308027]
[1763525801151,1.30607,3073.5,3073.4,0.00488027]
[1763525801758,4.51387,3073.5,3073.4,0.00488027]
[1763525803473,3.73527,3073.5,3073.4,0.86308027]
[1763525803761,4.51387,3073.5,3073.4,0.86308027]
[1763525803963,4.51387,3073.5,3073.4,0.00488027]
[1763525804365,0.52763,3072.6,3072.5,1.75181963]
[1763525804562,3.73543,3072.6,3072.5,0.5143]
[1763525804761,3.2078,3072.6,3072.5,0.5143]
[1763525805360,3.2078,3072.6,3072.5,0.51685088]
[1763525806862,3.2078,3072.6,3072.5,1.37505088]
[1763525807260,3.2078,3072.6,3072.5,0.51685088]
[1763525808054,3.2078,3072.6,3072.5,0.00255088]
[1763525808965,3.2078,3072.6,3072.5,0.51685088]
[1763525809664,0.52763,3072.7,3072.6,0.8582]
[1763525810269,3.73543,3072.7,3072.6,0.8582]
[1763525810769,0.52763,3072.7,3072.6,0.8582]
[1763525812166,0.53246027,3072.9,3072.8,0.8582]
[1763525812466,0.00488027,3072.9,3072.8,0.8582]
[1763525812670,0.52762,3072.7,3072.5,0.51685088]
[1763525812967,3.73542,3072.7,3072.5,0.51685088]